Cogmind - Beta 13 @@@ ROGUE MODE // 2024.04.28 @ 10:30:44 Player: MiNathan Result: Destroyed by CL-I9R(R) with Subdweller Beam Cannon Performance ------------- Evolutions (0) 0 Regions Visited (3) 600 Robots Destroyed (32) 160 Value Destroyed (554) 554 Prototype IDs (2) 40 Alien Tech Used (0) 0 Bonus (90) 90 TOTAL SCORE: 1444 Bonus ------- Follower Combat Kills 90 Cogmind --------- Core Integrity 0/250 Matter 280/300 Energy 96/200 System Corruption 0% Temperature Cool (9) Movement Treading (160) Location -10/Subcaves Parts ------- > --- POWER (1) -------- Subdweller Power Source > --- PROPULSION (2) --- Spiked Treads > --- UTILITY (2) ------ Subdweller Optics Signal Interpreter > --- WEAPON (2) ------- Subdweller Machine Gun Makeshift Spear > --- INVENTORY (5) ---- Subdweller Power Source Peak State ------------ > --- POWER ------------ Makeshift Power Source > --- PROPULSION ------- Subdweller Monowheel > --- UTILITY ---------- Subdweller Optics Signal Interpreter > --- WEAPON ----------- Subdweller Machine Gun Makeshift Spear > --- INVENTORY -------- (None) [Rating: 15] Favorites ----------- Power Light Ion Engine Engine Light Ion Engine Power Core Light Nuclear Core Propulsion Light Treads Treads Light Treads Wheel Subdweller Monowheel Utility Signal Interpreter Device Structural Scanner Processor Signal Interpreter Weapon Grenade Launcher Energy Gun Small Laser Ballistic Gun Assault Rifle Launcher Grenade Launcher Slashing Weapon Mining Claw Piercing Weapon Makeshift Spear Build | -11 -10 -10 -10 ------- Run | Yrd Mat Min Sub Slots Evolved . | . . . . Power . | . . . . Propulsion . | . . . . Utility . | . . . . Weapon . | . . . . Parts Attached 25 | 5 7 1 12 Power 7 | 1 2 . 4 Engine 6 | 1 2 . 3 Core 1 | . . . 1 Reactor . | . . . . Propulsion 6 | 2 1 . 3 Treads 4 | 2 1 . 1 Leg . | . . . . Wheel 2 | . . . 2 Hover . | . . . . Flight . | . . . . Utility 4 | . 3 . 1 Device 3 | . 2 . 1 Storage . | . . . . Processor 1 | . 1 . . Hackware . | . . . . Protection . | . . . . Artifact . | . . . . Weapon 8 | 2 1 1 4 Energy Gun 2 | 1 . . 1 Energy Cannon . | . . . . Ballistic Gun 3 | 1 . . 2 Ballistic Cannon . | . . . . Launcher 1 | . 1 . . Special Weapon . | . . . . Impact Weapon . | . . . . Slashing Weapon 1 | . . 1 . Piercing Weapon 1 | . . . 1 Special Melee Weapon . | . . . . Unidentified Prototypes . | . . . . Parts Lost 8 | . 2 1 5 Power 2 | . 1 . 1 Propulsion 2 | . . . 2 Utility 2 | . 1 . 1 Weapon 2 | . . 1 1 Highest Loss Streak 3 | . 1 1 3 To Critical Strikes . | . . . . Average Slot Usage (%) 89 | . 89 99 77 Engine 10 | . 13 14 5 Treads 22 | . 28 28 13 Wheel 1 | . . . 3 Device 11 | . 8 14 10 Processor 12 | . 10 14 14 Energy Gun 1 | . 4 . 1 Ballistic Gun 7 | . 14 1 8 Launcher 9 | . 9 14 3 Slashing Weapon 6 | . . 11 4 Piercing Weapon 3 | . . . 9 Naked Turns . | . . . . Heaviest Build 13 | 8 11 9 13 Greatest Support 40 | 40 40 40 40 Greatest Overweight (x) 2 | . 2 . 2 Average Overweight (x) . | . . . . Largest Inventory Capacity 5 | 5 5 5 5 Average Capacity 5 | 5 5 5 5 Most Carried 5 | 5 2 1 2 Average Carried . | . . . . Final Capacity 5 | 5 5 5 5 Final Carried 1 | . . . 1 Class Distribution -------------------- 91% | Mutant 8% | Scavenger-Mutant Dominant Class ---------------- Mutant | -10/Materials Mutant | -10/Mines Mutant | -10/Subcaves Resources | -11 -10 -10 -10 ----------- Run | Yrd Mat Min Sub Matter Collected 844 | 250 291 88 215 Remotely . | . . . . Salvage Created 712 | . 446 86 180 Parts 62 | . 44 8 10 Haulers Intercepted . | . . . . Recyclers Shooed 2 | . 2 . . Parts Field Recycled . | . . . . Retrieved Matter . | . . . . Parts Self-Destructed 13 | . . . 13 Prevented . | . . . . Kills | -11 -10 -10 -10 ------- Run | Yrd Mat Min Sub Combat Hostiles Destroyed 20 | . 11 6 3 Melee 1 | . . . 1 Guns 5 | . 3 . 2 AOE 14 | . 8 6 . Classes Destroyed 10 | . 8 . 2 Worker 2 | . 2 . . Builder 3 | . 3 . . Recycler 3 | . 2 1 . Mechanic 1 | . 1 . . Operator 1 | . 1 . . Watcher 2 | . 2 . . Swarmer 13 | . 6 6 1 Grunt 5 | . 5 . . Sentry 1 | . . . 1 Subdweller 1 | . . . 1 Best Kill Streak 5 | . 5 3 2 Combat Bots Only 5 | . 5 3 2 Max Kills in Single Turn 3 | . 3 2 1 Gunslinging . | . . . . Exploded 3 | . 3 2 . Melee 1 | . . . 1 Uniques/NPCs Destroyed . | . . . . Combat | -11 -10 -10 -10 -------- Run | Yrd Mat Min Sub Hostile Shots Fired 101 | . 40 11 50 Missed 37 | . 18 5 14 Damage Taken 1094 | . 378 85 631 Core 257 | . 66 34 157 Absorbed by Shields . | . . . . Core Remaining (%) 100 | 100 . . . Volleys Fired 95 | . 49 5 41 Largest 2 | . 2 1 1 Hottest 65 | . 60 30 65 Shots Fired 127 | . 81 5 41 Gun 106 | . 65 . 41 Cannon . | . . . . Launcher 21 | . 16 5 . Special . | . . . . Kinetic 77 | . 49 . 28 Thermal 29 | . 16 . 13 Explosive 21 | . 16 5 . Electromagnetic . | . . . . Robot Hit Streak 8 | . 6 1 8 Robot Miss Streak 4 | . 4 3 3 Penetration Max . | . . . . Secondary Targets . | . . . . Shots Hit Robots 75 | . 41 5 29 Core Hits 46 | . 33 7 6 Critical Kills . | . . . . Critical Parts Destroyed . | . . . . Critical Strikes 1 | . . . 1 Impale 1 | . . . 1 Melee Attacks 16 | . . 3 13 Impact . | . . . . Slashing 9 | . . 3 6 Piercing 7 | . . . 7 Sneak Attacks 3 | . . 3 . Combat Hostiles . | . . . . Follow-up Attacks . | . . . . Damage Inflicted 2112 | . 1143 486 483 Guns 703 | . 443 . 260 Cannons . | . . . . Explosions 1042 | . 700 342 . Melee 367 | . . 144 223 Ramming . | . . . . Kinetic 621 | . 377 . 244 Thermal 82 | . 66 . 16 Explosive 1042 | . 700 342 . Electromagnetic . | . . . . Impact . | . . . . Slashing 286 | . . 144 142 Piercing 81 | . . . 81 Highest Corruption . | . . . . Average Corruption . | . . . . Corruption Purged . | . . . . Corruption Blocked . | . . . . Overload Shots . | . . . . Overflow Damage 113 | . 69 38 6 Projectiles . | . . . . Explosions 88 | . 69 19 . Melee 25 | . . 19 6 Knockbacks . | . . . . Impact . | . . . . Kinetic . | . . . . Secondary . | . . . . Self-Inflicted Damage 183 | . 146 37 . Shots 6 | . 5 1 . Rammed . | . . . . Targets Rammed . | . . . . Kicked . | . . . . Crushed . | . . . . Highest Temperature 10 | . 5 . 10 Average Temperature 4 | . 3 . 10 Received Heat Transfer 192 | . 75 . 117 Siege Activations . | . . . . Robots Corrupted . | . . . . Combat Hostiles . | . . . . Parts Fried . | . . . . Impact Corruptions . | . . . . Robots Melted . | . . . . Combat Hostiles . | . . . . Parts Melted . | . . . . Heat Transferred 187 | . 150 . 37 Parts Sabotaged . | . . . . Parts Stolen . | . . . . Parts Stripped . | . . . . Power Chain Reactions . | . . . . Alert | -11 -10 -10 -10 ------- Run | Yrd Mat Min Sub Peak Influence 266 | . 266 224 . Initial 33 | . . 33 . Average 63 | . 92 45 . Maximum Alert Level 1 | . 1 1 . Low Security (%) 91 | 100 82 97 . Level 1 8 | . 17 2 . Level 2 . | . . . . Level 3 . | . . . . Level 4 . | . . . . Level 5 . | . . . . High Security . | . . . . Max Security . | . . . . Squads Dispatched 2 | . 2 . . Investigation . | . . . . Extermination . | . . . . Reinforcement 2 | . 2 . . Assault . | . . . . Garrison . | . . . . Intercept . | . . . . Searches Triggered . | . . . . Construction Impeded . | . . . . Haulers Reinforced . | . . . . Active Scanning Responses . | . . . . Cargo Convoy Interrupts . | . . . . Stealth | -11 -10 -10 -10 --------- Run | Yrd Mat Min Sub Distress Signals 1 | . 1 . . Communications Jammed . | . . . . Distress Signals . | . . . . Times Spotted 28 | . 16 6 6 Peak Tracking Total 5 | . 5 3 2 Tactical Retreats . | . . . . Traps | -11 -10 -10 -10 ------- Run | Yrd Mat Min Sub Traps Triggered . | . . . . Indirectly . | . . . . Trap Hack Attempts . | . . . . Triggered . | . . . . Disarmed . | . . . . Reprogrammed . | . . . . Reused . | . . . . Traps Extracted . | . . . . Installed . | . . . . Triggered 2 | . . . 2 Machines | -11 -10 -10 -10 ---------- Run | Yrd Mat Min Sub Machines Disabled 7 | . 5 2 . Max in Single Turn 2 | . 2 2 . Machines Repaired . | . . . . Machines Dismantled . | . . . . Machines Sabotaged . | . . . . Overloaded Fab Kills . | . . . . Hacking | -11 -10 -10 -10 --------- Run | Yrd Mat Min Sub Machines Accessed 2 | . 1 . 1 Terminals 1 | . 1 . . Fabricators . | . . . . Repair Stations . | . . . . Recycling Units . | . . . . Scanalyzers . | . . . . Garrison Access . | . . . . Total Hacks 5 | . 4 . 1 Successful 3 | . 2 . 1 Failed 2 | . 2 . . Catastrophic . | . . . . Database Lockouts . | . . . . Manual 1 | . 1 . . Terminals 4 | . 4 . . Fabricators . | . . . . Repair Stations . | . . . . Recycling Units . | . . . . Scanalyzers . | . . . . Garrison Access . | . . . . Terminal Hacks 3 | . 2 . 1 Record 1 | . . . 1 Prototype ID Bank 1 | . 1 . . Hauler Manifests 1 | . 1 . . Fabricator Hacks . | . . . . Repair Station Hacks . | . . . . Recycling Unit Hacks . | . . . . Scanalyzer . | . . . . Garrison Access Hacks . | . . . . Unauthorized Hacks . | . . . . Terminals . | . . . . Fabricators . | . . . . Repair Stations . | . . . . Recycling Units . | . . . . Scanalyzers . | . . . . Garrison Access . | . . . . Data Cores Recovered . | . . . . Used . | . . . . Hacking Detections 2 | . 2 . . Full Trace Events . | . . . . Feedback Events . | . . . . Feedback Blocked . | . . . . Robot Schematics Acquired . | . . . . Robots Built . | . . . . Authchips . | . . . . Time . | . . . . Total Robot Build Rating . | . . . . Part Schematics Acquired . | . . . . Parts Built . | . . . . Authchips . | . . . . Time . | . . . . Total Part Build Rating . | . . . . Parts Repaired . | . . . . Time . | . . . . Parts Recycled . | . . . . Recycled Matter . | . . . . Retrieved Matter . | . . . . Retrieved Components . | . . . . Parts Scanalyzed . | . . . . Part Schematics Acquired . | . . . . Parts Damaged . | . . . . Bothacking | -11 -10 -10 -10 ------------ Run | Yrd Mat Min Sub Used RIF Installer . | . . . . Robots Hacked . | . . . . Non-combat . | . . . . Combat . | . . . . Robot Hacks Applied . | . . . . Relay Couplers Released . | . . . . Fabnet Peak Effective % . | . . . . Robots Rewired . | . . . . Allies Hacked . | . . . . Hacks Repelled . | . . . . Allies | -11 -10 -10 -10 -------- Run | Yrd Mat Min Sub Total Allies 3 | . . 3 . Largest Group 3 | . . 3 3 Highest-Rated Group 40 | . . 40 40 Highest-Rated Ally 16 | . . 16 16 Total Orders . | . . . . Ally Attacks 30 | . . . 30 Total Damage 192 | . . . 192 Kills 3 | . . . 3 Allies Corrupted . | . . . . Allies Melted . | . . . . Intel | -11 -10 -10 -10 ------- Run | Yrd Mat Min Sub Robot Analysis Total . | . . . . Derelict Logs Recovered 4 | . . 2 2 Drone Launches . | . . . . Drone Recoveries . | . . . . Exploration | -11 -10 -10 -10 ------------- Run | Yrd Mat Min Sub Turns Passed 3016 | 45 813 1123 1035 Spaces Moved 1663 | 32 308 680 643 Core 317 | 14 78 . 225 Treads 1236 | 18 230 680 308 Legs . | . . . . Wheels 110 | . . . 110 Hover . | . . . . Flight . | . . . . Fastest Speed 50 | 50 150 160 50 Average Speed 150 | 111 157 160 138 Slowest Speed 160 | 160 160 160 160 Overloaded Moves . | . . . . Propulsion Burnouts . | . . . . Robots Hopped . | . . . . Cave-ins Triggered . | . . . . Exploration Rate (%) 46 | 3 41 94 48 Regions Visited 3 Branch Regions 2 Pre-discovered Areas 1 | . . 1 . Known Exits Taken 2 | . 1 1 . Unknown Exits Taken 1 | 1 . . . Scrap Searched 9 | . . 1 8 Spaces Dug 5 | . 4 . 1 Terrain Destroyed 81 | . 49 31 1 Melee 1 | . . . 1 Projectile . | . . . . AOE 80 | . 49 31 . Terrain Rammed . | . . . . Walls Destroyed . | . . . . Machines Disabled . | . . . . Actions | -11 -10 -10 -10 --------- Run | Yrd Mat Min Sub Total 2029 | 41 556 704 728 Wait 198 | . 183 15 . Move 1660 | 31 307 679 643 Hop . | . . . . Pick Up 24 | 5 6 1 12 Fast Attach . | . . . . Attach 15 | 5 4 1 5 Detach . | . . . . Swap 10 | . 3 . 7 Drop 11 | . 4 . 7 Fire 95 | . 49 5 41 Melee 16 | . . 3 13 Ram . | . . . . Kick . | . . . . Crush . | . . . . Escape Stasis . | . . . . Rewire . | . . . . Trap . | . . . . Miscellaneous . | . . . . Route ------- -11/Scrapyard -10/Materials -10/Mines (discovered 3 exits: *Mat x2 / *Sub) -10/Subcaves (discovered 2 exits: *Mat / Rec) History --------- Turn | Location | Event 9 | -11/Scrapyard | Discovered new exit (range 15) 46 | -11/Scrapyard | Entered Materials 308 | -10/Materials | Build established: Mutant 481 | -10/Materials | Discovered new exit (range 14) 853 | -10/Materials | Identified exit to Mines 859 | -10/Materials | Entered Mines 906 | -10/Mines | Learned Materials stockpile data 1128 | -10/Mines | Learned location of Storage (-7) 1224 | -10/Mines | Discovered new exit (range 10) 1241 | -10/Mines | Identified exit to Materials 1294 | -10/Mines | Discovered exit to Materials (range 6) 1302 | -10/Mines | Assisted by bots powering up and referring to "LRC-V3" 1449 | -10/Mines | Discovered new exit (range 6) 1456 | -10/Mines | Identified exit to Subcaves 1982 | -10/Mines | Entered Subcaves 1982 | -10/Subcaves | Accompanied by 3 allies 1983 | -10/Subcaves | Identified exit to Recycling 2083 | -10/Subcaves | Visited Clippyterm 2364 | -10/Subcaves | Core integrity fell below 50% 2413 | -10/Subcaves | Learned location of 1 exit from Materials 2419 | -10/Subcaves | Lost 3 parts (1p1n1u) 2435 | -10/Subcaves | Discovered new exit (range 15) 2457 | -10/Subcaves | Identified exit to Materials 2589 | -10/Subcaves | Learned Materials emergency access door positions 2651 | -10/Subcaves | Shifting Twisted Machinery released Sub. Optics 2780 | -10/Subcaves | A swath of the cavern ceiling suddenly collapsed 2978 | -10/Subcaves | Core integrity fell below 20% 3017 | -10/Subcaves | Disturbed a concealed Subdweller 3017 | -10/Subcaves | Disturbed a concealed Subdweller 3017 | -10/Subcaves | Destroyed by CL-I9R(R) with Subdweller Beam Cannon Last Messages --------------- Searching scrap... Found Riot Gun. Found 22 Matter. Searching scrap... Found Flamer. Found Sub. Machine Gun. Found 30 Matter. Searching scrap... Found Spk. Treads. Found Sub. Power Source. Found 29 Matter. Acquired Spk. Treads. Dropped Sub. Monowheel. Sub. Monowheel crushed and broken. Sub. Power Source shoots sparks and powers down. Acquired Sub. Power Source. CL-I9R(R) angrily emerges from the Twisted Machinery. C5-8J4(R) angrily emerges from the Twisted Machinery. Map ----- +----------------------------------------------------+ | ?????????????????????????????????????????????????? | | ?????????????????????????????????????????????????? | | ?????????????????????????????????????????????????? | | ?????????????????????????????????????????????????? | | ?????????????????????????????????????????????????? | | ?????????????????????????????????????????????????? | | ?????????????????????????????????????????????????? | | ?????????????????????????????????????????????????? | | ?????????????????????????????????????????????????? | | ?????????????????????????????????????????????????? | | ?????????????????????????????????????????????????? | | ?????????????????????????????????????????????????? | | ?????????????????????????????????????????????????? | | ?????????????????????????????????????????????????? | | ???????????????????????????#?????????????????????? | | ?????????????????????????? #?????????????????????? | | ?????????????????????????? ??????????????????????? | | ?????????????????????????%#??????????????????????? | | ???????????????###??###?# #??????????????????????? | | ???????????????# #?## ## #???????????????????????? | | ???????????????# ### ####?????????????????????? | | ???????????????# ###???????????????????? | | ???????????????# # ### #???????????????????? | | ???????????????##### ##<##? ????????????????????? | | ??????????????????## #